fUSD/lending_fUSD_20250616
["ID","MTS","AMOUNT","RATE_DAILY","PERIOD"]
[366172217,1750097497840,-1416.35,0.00016545,2]
[366172218,1750097497850,-490.0,0.00016545,2]
[366172219,1750097497860,-490.0,0.00016545,2]
[366172220,1750097497870,-151.0,0.00016546,2]
[366172221,1750097497880,-151.0,0.00016546,2]
[366172222,1750097497890,-151.0,0.00016546,2]
[366172223,1750097497900,-213.806361,0.00016546,2]
[366172224,1750097497910,-213.806361,0.00016546,2]
[366172225,1750097497920,-151.0,0.00016546,2]
[366172226,1750097497930,-151.0,0.00016546,2]
[366172227,1750097497939,-151.0,0.00016546,2]
[366172228,1750097497949,-151.0,0.00016546,2]
[366172229,1750097497960,-151.0,0.00016546,2]
[366172230,1750097497970,-193.35277,0.00016546,2]
[366172231,1750097497979,-193.352774,0.00016546,2]
[366172232,1750097497989,-151.0,0.00016546,2]
[366172233,1750097498000,-688.876505,0.00016546,2]
[366172234,1750097498011,-688.876501,0.00016546,2]
[366172235,1750097498021,-288.473412,0.00016546,2]
[366172236,1750097498032,-151.0,0.00016546,2]
[366172237,1750097498043,-4155.92030282,0.00016555,2]
[366172238,1750097498053,-481.466804,0.00016558,2]
[366172239,1750097498065,-481.466804,0.00016558,2]
[366172240,1750097498076,-189.0,0.00016566,2]
[366172241,1750097498087,-1000.0,0.0001657,2]
[366172242,1750097498097,-166.64,0.00016585,2]
[366172243,1750097498107,-4155.92030282,0.0001659,2]
[366172244,1750097498116,-2854.98,0.000166,2]
[366172245,1750097498126,-331.99689195,0.00016616,2]
[366172246,1750097498136,-731.53506903,0.00016621,2]
[366172247,1750097498146,-153.84221188,0.00016622,2]
[366172248,1750097498157,-490.0,0.00016624,2]
[366172249,1750097498396,-490.0,0.00016624,2]
[366172250,1750097498457,-1442.42,0.00016624,2]
[366172251,1750097498468,-908.67,0.00016624,2]
[366172252,1750097498478,-653.23,0.00016624,2]
[366172253,1750097498490,-2511.15,0.00016624,2]
[366172254,1750097498500,-4466.3,0.00016624,2]
[366172255,1750097498510,-498.67,0.00016624,2]
[366172256,1750097498521,-3739.89,0.00016624,2]
[366172257,1750097498533,-490.0,0.00016624,2]
[366172258,1750097498543,-9721.67,0.00016624,2]
[366172259,1750097498558,-6752.98,0.00016624,2]
[366172260,1750097498568,-2555.29,0.00016624,2]
[366172261,1750097498579,-5332.73,0.00016624,2]
[366172262,1750097498591,-1095.3,0.00016624,2]
[366172263,1750097498601,-1407.16,0.00016624,2]
[366172264,1750097498611,-1398.51,0.00016624,2]
[366172265,1750097498621,-1100.78,0.00016624,2]
[366172266,1750097498631,-1511.21,0.00016624,2]
[366172267,1750097498642,-866.1,0.00016624,2]
[366172268,1750097498653,-4716.19,0.00016624,2]
[366172269,1750097498664,-13968.45,0.00016624,2]
[366172270,1750097498674,-1441.28,0.00016624,2]
[366172271,1750097498684,-1424.41,0.00016624,2]
[366172272,1750097498695,-795.77,0.00016624,2]
[366172273,1750097498705,-2241.26,0.00016624,2]
[366172274,1750097498715,-1210.59,0.00016624,2]
[366172275,1750097498724,-647.97,0.00016624,2]
[366172276,1750097498735,-862.72,0.00016624,2]
[366172277,1750097498744,-11675.58,0.00016624,2]
[366172278,1750097498754,-490.0,0.00016624,2]
[366172279,1750097498764,-2327.4,0.00016624,2]
[366172280,1750097498780,-1268.57,0.00016624,2]
[366172281,1750097498792,-4155.92030282,0.00016624,2]
[366172282,1750097498802,-198.567034,0.00016625,2]
[366172283,1750097498812,-198.567034,0.00016625,2]
[366172284,1750097498822,-228.986909,0.00016625,2]
[366172285,1750097498832,-228.986909,0.00016625,2]
[366172286,1750097498842,-151.0,0.00016625,2]
[366172287,1750097498852,-529.193119,0.00016625,2]
[366172288,1750097498862,-529.193119,0.00016625,2]
[366172289,1750097498872,-225.027572,0.00016625,2]
[366172290,1750097498882,-225.027572,0.00016625,2]
[366172291,1750097498892,-421.70699,0.00016625,2]
[366172292,1750097498903,-421.70699,0.00016625,2]
[366172293,1750097498913,-1044.17,0.00016625,2]
[366172294,1750097498923,-967.07,0.00016625,2]
[366172295,1750097498934,-490.0,0.00016625,2]
[366172296,1750097498944,-490.0,0.00016625,2]
[366172297,1750097498956,-1242.8,0.00016625,2]
[366172298,1750097498965,-490.0,0.00016625,2]
[366172299,1750097498976,-490.0,0.00016625,2]
[366172300,1750097498986,-490.0,0.00016625,2]
[366172301,1750097498997,-1064.6,0.00016625,2]
[366172302,1750097499007,-818.38,0.00016625,2]
[366172303,1750097499018,-1034.52,0.00016625,2]
[366172304,1750097499029,-1057.59,0.00016625,2]
[366172305,1750097499040,-490.0,0.00016625,2]
[366172306,1750097499051,-490.0,0.00016625,2]
[366172307,1750097499061,-151.0,0.00016626,2]
[366172308,1750097499070,-245.58567,0.00016626,2]
[366172309,1750097499081,-675.0,0.00016629,2]
[366172310,1750097499091,-239.0,0.00016634,2]
[366172311,1750097499102,-343.25138438,0.00016639,2]
[366172312,1750097499112,-184.0,0.00016643,2]
[366172313,1750097499124,-568.26,0.00016653,2]
[366172314,1750097499135,-200.0,0.00016655,4]
[366172315,1750097499145,-490.0,0.00016656,2]
[366172316,1750097499155,-4155.92030282,0.00016659,2]
[366172317,1750097499166,-592.0,0.00016665,2]
[366172318,1750097499178,-4155.92030282,0.00016693,2]
[366172319,1750097499188,-1000.0,0.00016699,2]
[366172320,1750097499199,-278.66,0.00016703,2]
[366172321,1750097499210,-594.21,0.00016707,2]
[366172322,1750097499235,-685.48,0.00016707,2]
[366172323,1750097499247,-911.86,0.00016707,2]
[366172324,1750097499259,-490.0,0.00016707,2]
[366172325,1750097499272,-894.67,0.00016707,2]
[366172326,1750097499284,-554.31,0.00016707,2]
[366172327,1750097499294,-710.37,0.00016707,2]
[366172328,1750097499307,-4120.71,0.00016707,2]
[366172329,1750097499319,-578.79,0.00016707,2]
[366172330,1750097499330,-562.72,0.00016707,2]
[366172331,1750097499341,-1354.53,0.00016707,2]
[366172332,1750097499353,-607.35,0.00016707,2]
[366172333,1750097499364,-2707.8,0.00016707,2]
[366172334,1750097499375,-490.0,0.00016707,2]
[366172335,1750097499386,-490.0,0.00016707,2]
[366172336,1750097499397,-829.3,0.00016707,2]
[366172337,1750097499408,-2613.83,0.00016707,2]
[366172338,1750097499419,-507.51,0.00016707,2]
[366172339,1750097499430,-796.34,0.00016707,2]
[366172340,1750097499441,-824.05,0.00016707,2]
[366172341,1750097499453,-753.23,0.00016707,2]
[366172342,1750097499463,-641.31,0.00016707,2]
[366172343,1750097499473,-490.0,0.00016707,2]
[366172344,1750097499484,-890.33,0.00016707,2]
[366172345,1750097499495,-210.00689634,0.00016707,2]
[366172346,1750097499506,-151.0,0.00016709,2]
[366172347,1750097499517,-151.0,0.00016709,2]
[366172348,1750097499528,-797.95,0.00016709,2]
[366172349,1750097499539,-490.0,0.00016709,2]
[366172350,1750097499553,-490.0,0.00016709,2]
[366172351,1750097499564,-490.0,0.00016709,2]
[366172352,1750097499575,-490.0,0.00016709,2]
[366172353,1750097499586,-544.11,0.00016709,2]
[366172354,1750097499597,-250.0,0.00016709,2]
[366172355,1750097499608,-490.0,0.00016709,2]
[366172356,1750097499618,-490.0,0.00016709,2]
[366172357,1750097499628,-490.0,0.00016709,2]
[366172358,1750097499639,-211.97755614,0.00016709,2]
[366172359,1750097499649,-718.04,0.00016709,2]
[366172360,1750097499669,-490.0,0.00016709,2]
[366172361,1750097499680,-814.42,0.00016709,2]
[366172362,1750097499692,-490.0,0.00016709,2]
[366172363,1750097499703,-490.0,0.00016709,2]
[366172364,1750097499714,-490.0,0.00016709,2]
[366172365,1750097499725,-490.0,0.00016709,2]
[366172366,1750097499736,-490.0,0.00016709,2]
[366172367,1750097499748,-770.9,0.00016709,2]
[366172368,1750097499761,-490.0,0.00016709,2]
[366172369,1750097499772,-490.0,0.00016709,2]
[366172370,1750097499784,-490.0,0.00016709,2]
[366172371,1750097499795,-490.0,0.00016709,2]
[366172372,1750097499807,-490.0,0.00016709,2]
[366172373,1750097499818,-490.0,0.00016709,2]
[366172374,1750097499829,-490.0,0.00016709,2]
[366172375,1750097499839,-599.87,0.00016709,2]
[366172376,1750097499853,-490.0,0.00016709,2]
[366172377,1750097499864,-490.0,0.00016709,2]
[366172378,1750097499875,-490.0,0.00016709,2]
[366172379,1750097499887,-490.0,0.00016709,2]
[366172380,1750097499898,-756.1,0.00016709,2]
[366172381,1750097499909,-858.35,0.00016709,2]
[366172382,1750097499920,-490.0,0.00016709,2]
[366172383,1750097499932,-490.0,0.00016709,2]
[366172384,1750097499942,-1269.171004,0.00016709,2]
[366172385,1750097499953,-490.0,0.00016709,2]
[366172386,1750097499964,-1156.22,0.00016709,2]
[366172387,1750097499975,-490.0,0.00016709,2]
[366172388,1750097499987,-530.95,0.00016709,2]
[366172389,1750097499999,-490.0,0.00016709,2]
[366172390,1750097500011,-490.0,0.00016709,2]
[366172391,1750097500023,-490.0,0.00016709,2]
[366172392,1750097500035,-490.0,0.00016709,2]
[366172393,1750097500046,-800.605836,0.00016709,2]
[366172394,1750097500057,-826.14,0.00016709,2]
[366172395,1750097500068,-490.0,0.00016709,2]
[366172396,1750097500079,-490.0,0.00016709,2]
[366172397,1750097500090,-490.0,0.00016709,2]
[366172398,1750097500107,-490.0,0.00016709,2]
[366172399,1750097500118,-490.0,0.00016709,2]
[366172400,1750097500129,-490.0,0.00016709,2]
[366172401,1750097500140,-435.02759798,0.00016709,2]
[366172402,1750097500152,-490.0,0.00016709,2]
[366172403,1750097500163,-490.0,0.00016709,2]
[366172404,1750097500174,-1153.5,0.00016709,2]
[366172405,1750097500185,-490.0,0.00016709,2]
[366172406,1750097500196,-648.75,0.00016709,2]
[366172407,1750097500208,-992.9,0.00016709,2]
[366172408,1750097500220,-758.65,0.00016709,2]
[366172409,1750097500231,-490.0,0.00016709,2]
[366172410,1750097500242,-490.0,0.00016709,2]
[366172411,1750097500254,-490.0,0.00016709,2]
[366172412,1750097500264,-407.41505635,0.00016709,2]
[366172413,1750097500276,-490.0,0.00016709,2]
[366172414,1750097500287,-842.2,0.00016709,2]
[366172415,1750097500299,-490.0,0.00016709,2]
[366172416,1750097500309,-1252.4,0.00016709,2]
[366172417,1750097500320,-490.0,0.00016709,2]
[366172418,1750097500331,-490.0,0.00016709,2]
[366172419,1750097500342,-730.56,0.00016709,2]
[366172420,1750097500354,-516.24,0.00016709,2]
[366172421,1750097500365,-989.93,0.00016709,2]
[366172422,1750097500376,-490.0,0.00016709,2]
[366172423,1750097500387,-672.45,0.00016709,2]
[366172424,1750097500398,-1119.59,0.00016709,2]
[366172425,1750097500409,-490.0,0.00016709,2]
[366172426,1750097500420,-718.73,0.00016709,2]
[366172427,1750097500431,-490.0,0.00016709,2]
[366172428,1750097500442,-952.43,0.00016709,2]
[366172429,1750097500453,-490.0,0.00016709,2]
[366172430,1750097500464,-1345.75,0.00016709,2]
[366172431,1750097500474,-490.0,0.00016709,2]
[366172432,1750097500486,-490.0,0.00016709,2]
[366172433,1750097500496,-567.46,0.00016709,2]
[366172434,1750097500509,-490.0,0.00016709,2]
[366172435,1750097500520,-551.79,0.00016709,2]
[366172436,1750097500536,-490.0,0.00016709,2]
[366172437,1750097500550,-490.0,0.00016709,2]
[366172438,1750097500560,-490.0,0.00016709,2]
[366172439,1750097500570,-1135.62,0.00016709,2]
[366172440,1750097500582,-826.68,0.00016709,2]
[366172441,1750097500594,-895.74,0.00016709,2]
[366172442,1750097500606,-4910.71,0.00016709,2]
[366172443,1750097500619,-2461.85,0.00016709,2]
[366172444,1750097500631,-1093.74,0.00016709,2]
[366172445,1750097500641,-490.0,0.00016709,2]
[366172446,1750097500652,-717.88,0.00016709,2]
[366172447,1750097500663,-796.78,0.00016709,2]
[366172448,1750097500673,-625.08,0.00016709,2]
[366172449,1750097500683,-1647.18,0.00016709,2]
[366172450,1750097500694,-543.83,0.00016709,2]
[366172451,1750097500703,-490.0,0.00016709,2]
[366172452,1750097500714,-1130.31,0.00016709,2]
[366172453,1750097500724,-1991.64,0.00016709,2]
[366172454,1750097500734,-490.0,0.00016709,2]
[366172455,1750097500745,-1081.71,0.00016709,2]
[366172456,1750097500757,-829.21,0.00016709,2]
[366172457,1750097500767,-862.87,0.00016709,2]
[366172458,1750097500778,-1235.02,0.00016709,2]
[366172459,1750097500788,-690.88,0.00016709,2]
[366172460,1750097500799,-490.0,0.00016709,2]
[366172461,1750097500811,-1017.88,0.00016709,2]
[366172462,1750097500821,-490.0,0.00016709,2]
[366172463,1750097500831,-1749.64,0.00016709,2]
[366172464,1750097500841,-490.0,0.00016709,2]
[366172465,1750097500852,-490.0,0.00016709,2]
[366172466,1750097500862,-711.65,0.00016709,2]
[366172467,1750097500873,-2184.74,0.00016709,2]
[366172468,1750097500884,-490.0,0.00016709,2]
[366172469,1750097500895,-1526.44,0.00016709,2]
[366172470,1750097500906,-490.0,0.00016709,2]
[366172471,1750097500918,-490.0,0.00016709,2]
[366172472,1750097500928,-1234.25,0.00016709,2]
[366172473,1750097500938,-2114.77,0.00016709,2]
[366172474,1750097500949,-705.05,0.00016709,2]
[366172475,1750097500959,-3019.32,0.00016709,2]
[366172476,1750097500970,-2901.48,0.00016709,2]
[366172477,1750097500982,-490.0,0.00016709,2]
[366172478,1750097500993,-920.09,0.00016709,2]
[366172479,1750097501004,-3394.88,0.00016709,2]
[366172480,1750097501014,-1259.21,0.00016709,2]
[366172481,1750097501025,-747.22,0.00016709,2]
[366172482,1750097501036,-917.9,0.00016709,2]
[366172483,1750097501047,-525.08,0.00016709,2]
[366172484,1750097501058,-881.3,0.00016709,2]
[366172485,1750097501077,-959.79,0.00016709,2]
[366172486,1750097501091,-3957.31,0.00016709,2]
[366172487,1750097501102,-2591.73,0.00016709,2]
[366172488,1750097501114,-490.0,0.00016709,2]
[366172489,1750097501125,-1570.26,0.00016709,2]
[366172490,1750097501136,-1178.34,0.00016709,2]
[366172491,1750097501147,-1249.99,0.00016709,2]
[366172492,1750097501158,-1442.17,0.00016709,2]
[366172493,1750097501169,-816.12,0.00016709,2]
[366172494,1750097501180,-559.14,0.00016709,2]
[366172495,1750097501191,-705.02,0.00016709,2]
[366172496,1750097501202,-1583.7,0.00016709,2]
[366172497,1750097501213,-490.0,0.00016709,2]
[366172498,1750097501224,-660.21,0.00016709,2]
[366172499,1750097501234,-933.55,0.00016709,2]
[366172500,1750097501245,-572.2,0.00016709,2]
[366172501,1750097501257,-1064.83,0.00016709,2]
[366172502,1750097501267,-1877.29,0.00016709,2]
[366172503,1750097501278,-490.0,0.00016709,2]
[366172504,1750097501516,-5808.97,0.00016709,2]
[366172505,1750097501526,-2003.01,0.00016709,2]
[366172506,1750097501537,-490.0,0.00016709,2]
[366172507,1750097501549,-1016.09,0.00016709,2]
[366172508,1750097501560,-490.0,0.00016709,2]
[366172509,1750097501570,-490.0,0.00016709,2]
[366172510,1750097501581,-1379.16,0.00016709,2]
[366172511,1750097501591,-5973.49,0.00016709,2]
[366172512,1750097501601,-556.11,0.00016709,2]
[366172513,1750097501611,-583.93,0.00016709,2]
[366172514,1750097501622,-543.98,0.00016709,2]
[366172515,1750097501635,-2191.82,0.00016709,2]
[366172516,1750097501645,-2541.52,0.00016709,2]
[366172517,1750097501656,-1589.64,0.00016709,2]
[366172518,1750097501666,-1169.98,0.00016709,2]
[366172519,1750097501675,-2216.25,0.00016709,2]
[366172520,1750097501686,-4248.73,0.00016709,2]
[366172521,1750097501696,-490.0,0.00016709,2]
[366172522,1750097501706,-651.19,0.00016709,2]
[366172523,1750097501717,-707.97,0.00016709,2]
[366172524,1750097501727,-1098.11,0.00016709,2]
[366172525,1750097501737,-748.31,0.00016709,2]
[366172526,1750097501747,-695.28,0.00016709,2]
[366172527,1750097501758,-1609.92,0.00016709,2]
[366172528,1750097501768,-986.22,0.00016709,2]
[366172529,1750097501779,-490.0,0.00016709,2]
[366172530,1750097501789,-490.0,0.00016709,2]
[366172531,1750097501800,-908.9,0.00016709,2]
[366172532,1750097501810,-593.17,0.00016709,2]
[366172533,1750097501820,-1730.21,0.00016709,2]
[366172534,1750097501830,-2098.49,0.00016709,2]
[366172535,1750097501840,-1940.76,0.00016709,2]
[366172536,1750097501850,-538.8,0.00016709,2]
[366172537,1750097501861,-597.7,0.00016709,2]
[366172538,1750097501871,-490.0,0.00016709,2]
[366172539,1750097501882,-490.0,0.00016709,2]
[366172540,1750097501892,-1456.14,0.00016709,2]
[366172541,1750097501907,-571.68,0.00016709,2]
[366172542,1750097501918,-706.67,0.00016709,2]
[366172543,1750097501930,-2767.0,0.00016709,2]
[366172544,1750097501945,-2318.25,0.00016709,2]
[366172545,1750097501955,-550.15,0.00016709,2]
[366172546,1750097501965,-569.59,0.00016709,2]
[366172547,1750097501975,-1192.81,0.00016709,2]
[366172548,1750097501985,-561.67,0.00016709,2]
[366172549,1750097501996,-4911.12,0.00016709,2]
[366172550,1750097502006,-13414.35,0.00016709,2]
[366172551,1750097502016,-3575.07,0.00016709,2]
[366172552,1750097502026,-5130.5,0.00016709,2]
[366172553,1750097502036,-490.0,0.00016709,2]
[366172554,1750097502048,-690.53,0.00016709,2]
[366172555,1750097502058,-490.0,0.00016709,2]
[366172556,1750097502068,-490.0,0.00016709,2]
[366172557,1750097502079,-1923.82,0.00016709,2]
[366172558,1750097502089,-300.0,0.00016709,2]
[366172559,1750097502099,-223.37906162,0.00016709,2]
[366172560,1750097502109,-151.0,0.0001671,2]
[366172561,1750097502120,-213.806361,0.0001671,2]
[366172562,1750097502130,-213.806361,0.0001671,2]
[366172563,1750097502139,-151.0,0.0001671,2]
[366172564,1750097502150,-198.567034,0.0001671,2]
[366172565,1750097502160,-198.567044,0.0001671,2]
[366172566,1750097502170,-228.986909,0.0001671,2]
[366172567,1750097502180,-228.986901,0.0001671,2]
[366172568,1750097502190,-278.061212,0.0001671,2]
[366172569,1750097502200,-529.193119,0.0001671,2]
[366172570,1750097502211,-529.193115,0.0001671,2]
[366172571,1750097502223,-225.027572,0.0001671,2]
[366172572,1750097502234,-225.027575,0.0001671,2]
[366172573,1750097502245,-481.466804,0.0001671,2]
[366172574,1750097502255,-481.466794,0.0001671,2]
[366172575,1750097502265,-192.362054,0.0001671,2]
[366172576,1750097502275,-490.0,0.0001671,2]
[366172577,1750097502285,-179.64098176,0.0001671,2]
[366172578,1750097502295,-421.70699,0.0001671,2]
[366172579,1750097502305,-490.0,0.0001671,2]
[366172580,1750097502315,-421.706998,0.0001671,2]
[366172581,1750097502325,-985.41,0.0001671,2]
[366172582,1750097502336,-490.0,0.0001671,2]
[366172583,1750097502351,-490.0,0.0001671,2]
[366172584,1750097502362,-490.0,0.0001671,2]
[366172585,1750097502372,-490.0,0.0001671,2]
[366172586,1750097502383,-490.0,0.0001671,2]
[366172587,1750097502394,-490.0,0.0001671,2]
[366172588,1750097502404,-490.0,0.0001671,2]
[366172589,1750097502415,-345.92540409,0.0001671,2]
[366172590,1750097502426,-490.0,0.0001671,2]
[366172591,1750097502438,-635.33,0.0001671,2]
[366172592,1750097502448,-490.0,0.0001671,2]
[366172593,1750097502459,-490.0,0.0001671,2]
[366172594,1750097502469,-490.0,0.0001671,2]
[366172595,1750097502479,-490.0,0.0001671,2]
[366172596,1750097502489,-490.0,0.0001671,2]
[366172597,1750097502500,-490.0,0.0001671,2]
[366172598,1750097502509,-151.0,0.0001671,2]
[366172599,1750097502519,-490.0,0.0001671,2]
[366172600,1750097502529,-490.0,0.0001671,2]
[366172601,1750097502539,-842.4,0.0001671,2]
[366172602,1750097502553,-490.0,0.0001671,2]
[366172603,1750097502563,-733.09,0.0001671,2]
[366172604,1750097502574,-490.0,0.0001671,2]
[366172605,1750097502584,-490.0,0.0001671,2]
[366172606,1750097502595,-490.0,0.0001671,2]
[366172607,1750097502605,-490.0,0.0001671,2]
[366172608,1750097502616,-583.56,0.0001671,2]
[366172609,1750097502626,-490.0,0.0001671,2]
[366172610,1750097502636,-907.12,0.0001671,2]
[366172611,1750097502647,-494.22,0.0001671,2]
[366172612,1750097502656,-736.9,0.0001671,2]
[366172613,1750097502666,-490.0,0.0001671,2]
[366172614,1750097502676,-1170.23,0.0001671,2]
[366172615,1750097502687,-490.0,0.0001671,2]
[366172616,1750097502697,-490.0,0.0001671,2]
[366172617,1750097502707,-490.0,0.0001671,2]
[366172618,1750097502718,-490.0,0.0001671,2]
[366172619,1750097502729,-713.7,0.0001671,2]
[366172620,1750097502739,-775.4,0.0001671,2]
[366172621,1750097502750,-658.16,0.0001671,2]
[366172622,1750097502760,-490.0,0.0001671,2]
[366172623,1750097502771,-490.0,0.0001671,2]
[366172624,1750097502782,-650.98,0.0001671,2]
[366172625,1750097502801,-490.0,0.0001671,2]
[366172626,1750097502814,-727.19,0.0001671,2]
[366172627,1750097502826,-490.0,0.0001671,2]
[366172628,1750097502838,-895.18,0.0001671,2]
[366172629,1750097502849,-671.04,0.0001671,2]
[366172630,1750097502859,-509.39,0.0001671,2]
[366172631,1750097502870,-720.72,0.0001671,2]
[366172632,1750097502880,-757.48,0.0001671,2]
[366172633,1750097502890,-401.51710176,0.0001671,2]
[366172634,1750097502900,-490.0,0.0001671,2]
[366172635,1750097502911,-1126.62,0.0001671,2]
[366172636,1750097502922,-648.98,0.0001671,2]
[366172637,1750097502932,-490.0,0.0001671,2]
[366172638,1750097502942,-490.0,0.0001671,2]
[366172639,1750097502953,-490.0,0.0001671,2]
[366172640,1750097502963,-490.0,0.0001671,2]
[366172641,1750097502972,-524.26,0.0001671,2]
[366172642,1750097502982,-824.61,0.0001671,2]
[366172643,1750097502992,-617.31,0.0001671,2]
[366172644,1750097503003,-649.84,0.0001671,2]
[366172645,1750097503013,-490.0,0.0001671,2]
[366172646,1750097503024,-490.0,0.0001671,2]
[366172647,1750097503035,-1014.9,0.0001671,2]
[366172648,1750097503044,-1044.12,0.0001671,2]
[366172649,1750097503054,-490.0,0.0001671,2]
[366172650,1750097503065,-490.0,0.0001671,2]
[366172651,1750097503074,-490.0,0.0001671,2]
[366172652,1750097503084,-490.0,0.0001671,2]
[366172653,1750097503094,-490.0,0.0001671,2]
[366172654,1750097503104,-1807.42,0.0001671,2]
[366172655,1750097503114,-490.0,0.0001671,2]
[366172656,1750097503124,-1158.78,0.0001671,2]
[366172657,1750097503135,-490.0,0.0001671,2]
[366172658,1750097503145,-583.33,0.0001671,2]
[366172659,1750097503154,-784.75,0.0001671,2]
[366172660,1750097503165,-490.05,0.0001671,2]
[366172661,1750097503175,-1985.02,0.0001671,2]
[366172662,1750097503185,-962.1,0.0001671,2]
[366172663,1750097503195,-944.05,0.0001671,2]
[366172664,1750097503205,-1472.76,0.0001671,2]
[366172665,1750097503215,-570.62,0.0001671,2]
[366172666,1750097503225,-1022.84,0.0001671,2]
[366172667,1750097503240,-455.11455797,0.0001671,2]
[366172668,1750097503250,-1527.24,0.0001671,2]
[366172669,1750097503260,-490.0,0.0001671,2]
[366172670,1750097503270,-1465.16,0.0001671,2]
[366172671,1750097503280,-490.0,0.0001671,2]
[366172672,1750097503291,-957.75,0.0001671,2]
[366172673,1750097503302,-490.0,0.0001671,2]
[366172674,1750097503312,-556.13,0.0001671,2]
[366172675,1750097503323,-1212.82,0.0001671,2]
[366172676,1750097503333,-1523.66,0.0001671,2]
[366172677,1750097503343,-490.0,0.0001671,2]
[366172678,1750097503353,-1416.89,0.0001671,2]
[366172679,1750097503363,-1547.23,0.0001671,2]
[366172680,1750097503373,-501.08,0.0001671,2]
[366172681,1750097503383,-1464.74,0.0001671,2]
[366172682,1750097503394,-579.70695709,0.0001671,2]
[366172683,1750097503404,-924.02,0.0001671,2]
[366172684,1750097503414,-764.62,0.0001671,2]
[366172685,1750097503424,-790.02,0.0001671,2]
[366172686,1750097503434,-596.23,0.0001671,2]
[366172687,1750097503443,-490.0,0.0001671,2]
[366172688,1750097503454,-490.0,0.0001671,2]
[366172689,1750097503464,-490.0,0.0001671,2]
[366172690,1750097503474,-280.05043531,0.0001671,2]
[366172691,1750097503484,-529.91,0.0001671,2]
[366172692,1750097503494,-853.81,0.0001671,2]
[366172693,1750097503505,-490.0,0.0001671,2]
[366172694,1750097503515,-1168.91,0.0001671,2]
[366172695,1750097503525,-1067.25,0.0001671,2]
[366172696,1750097503535,-2186.48,0.0001671,2]
[366172697,1750097503546,-1153.6,0.0001671,2]
[366172698,1750097503560,-860.46,0.0001671,2]
[366172699,1750097503572,-1749.97,0.0001671,2]
[366172700,1750097503582,-850.36,0.0001671,2]
[366172701,1750097503595,-900.45,0.0001671,2]
[366172702,1750097503605,-1038.07,0.0001671,2]
[366172703,1750097503615,-490.0,0.0001671,2]
[366172704,1750097503625,-2645.85,0.0001671,2]
[366172705,1750097503637,-490.0,0.0001671,2]
[366172706,1750097503647,-981.06,0.0001671,2]
[366172707,1750097503658,-654.46,0.0001671,2]
[366172708,1750097503669,-1120.23,0.0001671,2]
[366172709,1750097503679,-824.25,0.0001671,2]
[366172710,1750097503690,-743.93,0.0001671,2]
[366172711,1750097503701,-1232.36,0.0001671,2]
[366172712,1750097503711,-920.01,0.0001671,2]
[366172713,1750097503722,-816.92,0.0001671,2]
[366172714,1750097503732,-490.0,0.0001671,2]
[366172715,1750097503743,-1520.64,0.0001671,2]
[366172716,1750097503754,-836.03,0.0001671,2]